bitfinex-derivatives/quotes_ETHF0:USTF0_20240830
["timestamp","ask_amount","ask_price","bid_price","bid_amount"]
[1725010557023,0.00595061,2522.8,2522.5,0.39636]
[1725010557725,0.00595061,2522.8,2522.6,0.60778524]
[1725010557923,0.00595061,2522.8,2522.5,0.39636]
[1725010559726,0.00595061,2522.8,2522.6,0.39635]
[1725010560123,0.00595061,2522.8,2522.4,3.2078]
[1725010560124,4.48801071,2522.7,2522.4,3.2078]
[1725010560327,0.39635,2522.6,2522.5,0.49563053]
[1725010560523,0.78845,2522.6,2522.5,0.49563053]
[1725010560730,9.14307495,2522.6,2522.5,0.49563053]
[1725010560925,5.17907495,2522.6,2522.5,0.49563053]
[1725010561226,9.14307495,2522.6,2522.5,0.49563053]
[1725010561933,5.17907495,2522.6,2522.5,0.49563053]
[1725010563926,9.14307495,2522.6,2522.5,0.49563053]
[1725010565027,9.50677495,2522.6,2522.5,0.49563053]
[1725010565528,0.39638,2522.5,2522.3,0.40235061]
[1725010565727,0.39638,2522.4,2522.3,0.40235061]
[1725010565927,0.39638,2522.4,2522.3,0.89801402]
[1725010565928,4.88527545,2522.4,2522.3,0.89801402]
[1725010567224,4.88527545,2522.4,2522.3,0.50161402]
[1725010567529,8.09307545,2522.4,2522.3,0.00595061]
[1725010569618,4.88527545,2522.4,2522.3,0.00595061]
[1725010569832,8.09307545,2522.4,2522.3,0.00595061]
[1725010570128,9.08404545,2522.4,2522.3,0.00595061]
[1725010570327,13.04884545,2522.4,2522.3,0.00595061]
[1725010571031,12.05787545,2522.4,2522.3,0.00595061]
[1725010573134,13.04884545,2522.4,2522.3,0.00595061]
[1725010573433,14.03981545,2522.4,2522.3,0.00595061]
[1725010575421,12.05787545,2522.4,2522.3,0.00595061]
[1725010575626,8.09307545,2522.4,2522.3,0.40235061]
[1725010577431,13.04884545,2522.4,2522.3,0.00595061]
[1725010578434,8.09307545,2522.4,2522.3,0.40235061]
[1725010578739,7.69669545,2522.4,2522.3,0.89802207]
[1725010578938,8.09307545,2522.4,2522.3,0.89802207]
[1725010580731,4.88527545,2522.4,2522.3,0.89802207]
[1725010580935,8.09307545,2522.4,2522.3,0.89802207]
[1725010581932,4.88527545,2522.4,2522.3,0.89802207]
[1725010582133,7.69669545,2522.4,2522.3,0.89802207]
[1725010582538,4.48889545,2522.4,2522.3,0.89802207]
[1725010582738,4.88527545,2522.4,2522.3,0.8980163]
[1725010582943,4.48889545,2522.4,2522.3,0.8980163]
[1725010583127,4.55966794,2522.5,2522.4,0.39638]
[1725010583332,0.39638,2522.5,2522.4,0.89204569]
[1725010583741,5.74146292,2522.5,2522.4,0.49566569]
[1725010585647,8.94926292,2522.5,2522.4,0.49566569]
[1725010585936,8.94926292,2522.5,2522.3,0.40235061]
[1725010585937,0.39638,2522.4,2522.3,0.40235061]
[1725010586335,4.77897706,2522.4,2522.3,0.40235061]
[1725010587135,4.77897706,2522.4,2522.3,0.89801428]
[1725010589345,4.77897706,2522.4,2522.3,1.50691673]
[1725010592448,4.77897706,2522.4,2522.3,0.40235061]
[1725010592652,4.77897706,2522.4,2522.3,1.01122152]
[1725010593033,4.77897706,2522.4,2522.3,1.50688131]
[1725010594242,4.77897706,2522.4,2522.3,2.38603298]
[1725010594647,5.76994706,2522.4,2522.3,1.98963298]
[1725010594843,5.76994706,2522.4,2522.3,1.50688131]
[1725010595244,5.76994706,2522.4,2522.3,2.38610334]
[1725010595639,5.76994706,2522.4,2522.3,1.98970334]
[1725010595845,5.76994706,2522.4,2522.3,0.8980104]
[1725010596051,5.76994706,2522.4,2522.3,1.98976404]
[1725010596349,5.76994706,2522.4,2522.3,2.40175321]
[1725010598155,5.76994706,2522.4,2522.3,3.42957426]
[1725010598856,10.72571706,2522.4,2522.3,2.40175321]
[1725010599054,16.72571706,2522.4,2522.3,1.81245321]
[1725010599252,16.72571706,2522.4,2522.3,1.10459056]
[1725010599562,16.72571706,2522.4,2522.3,1.10466594]
[1725010599855,10.72571706,2522.4,2522.3,1.10466594]
[1725010600058,4.77897706,2522.4,2522.3,1.10466594]
[1725010600359,5.76994706,2522.4,2522.3,1.51670467]
[1725010600552,4.77897706,2522.4,2522.3,1.51670467]
[1725010600757,4.77897706,2522.4,2522.3,1.91310467]
[1725010600955,4.38259706,2522.4,2522.3,7.54845057]
[1725010601146,3.60417,2522.5,2522.3,8.57905921]
[1725010601351,3.60417,2522.5,2522.4,3.18725057]
[1725010602449,3.60417,2522.5,2522.4,0.49574889]
[1725010602642,3.60417,2522.5,2522.4,3.18660602]
[1725010602849,3.60417,2522.5,2522.4,2.69085713]
[1725010603049,8.9725603,2522.5,2522.4,2.69085713]
[1725010603249,8.9725603,2522.5,2522.4,3.18649881]
[1725010604561,7.9816303,2522.5,2522.4,3.18649881]
[1725010605761,7.9816303,2522.5,2522.4,3.1865309]
[1725010606552,4.7738303,2522.5,2522.4,3.1865309]
[1725010606753,7.9816303,2522.5,2522.4,3.1865309]
[1725010607671,8.9725603,2522.5,2522.4,3.1865309]
[1725010607869,9.3396603,2522.5,2522.4,3.1865309]
[1725010608272,13.3036603,2522.5,2522.4,1.51626539]
[1725010608573,13.3036603,2522.5,2522.4,2.54369607]
[1725010608777,13.3036603,2522.5,2522.4,0.4956576]
[1725010608972,1.38741,2522.3,2522.2,1.03061864]
[1725010609180,0.39641,2522.2,2522.1,2.00837359]
[1725010609373,0.78021,2522.2,2522.1,8.47280434]
[1725010609573,5.15923809,2522.2,2522.1,8.47280434]
[1725010609778,5.15923809,2522.2,2522.1,6.92670251]
[1725010609978,5.15923809,2522.2,2522.1,7.42239942]
[1725010610179,5.15923809,2522.2,2522.1,7.02596942]
[1725010610180,6.15027809,2522.2,2522.1,7.02596942]
[1725010610476,9.35807809,2522.2,2522.1,7.44581236]
[1725010611068,9.35807809,2522.2,2522.1,5.46301885]
[1725010613380,9.35807809,2522.2,2522.1,7.44586726]
[1725010613582,9.35807809,2522.2,2522.1,8.06462221]
[1725010613771,9.35807809,2522.2,2522.1,7.44586726]
[1725010614474,9.35807809,2522.2,2522.1,5.46301885]
[1725010615682,9.35807809,2522.2,2522.1,4.96730639]
[1725010615880,9.35807809,2522.2,2522.1,5.46301696]
[1725010616176,9.35807809,2522.2,2522.1,7.44586147]
[1725010616482,9.35807809,2522.2,2522.1,5.46301696]
[1725010616788,9.35807809,2522.2,2522.1,4.42441907]
[1725010617971,14.31391809,2522.2,2522.1,4.06541907]
[1725010618174,14.50781138,2522.2,2522.1,2.39518914]
[1725010618372,14.50781138,2522.2,2522.1,1.1043817]
[1725010618777,16.48990138,2522.2,2522.1,0.49571057]
[1725010620987,13.28210138,2522.2,2522.1,0.49571057]
[1725010621291,1.38779,2521.6,2521.5,0.3632]
[1725010621478,2.37907,2521.6,2521.5,4.44101668]
[1725010621684,6.63958238,2521.6,2521.5,3.03921879]
[1725010622186,6.63958238,2521.6,2521.5,3.41901879]
[1725010622379,6.63958238,2521.6,2521.5,2.77593133]
[1725010622581,6.63958238,2521.6,2521.5,2.39613133]
[1725010623292,6.63958238,2521.6,2521.5,1.5168313]
[1725010623492,10.60518238,2521.6,2521.5,1.5168313]
[1725010623790,10.60518238,2521.6,2521.5,1.1047463]
[1725010624188,10.60518238,2521.6,2521.5,0.49581748]
[1725010624489,0.39657,2521.2,2521.1,6.67938789]
[1725010624682,0.39657,2521.2,2521.1,7.78924091]
[1725010624882,4.62604572,2521.2,2521.1,7.78924091]
[1725010625082,4.62604572,2521.2,2521.1,8.28512717]
[1725010626289,4.62604572,2521.2,2521.1,4.17812717]
[1725010626492,4.62604572,2521.2,2521.1,3.53461168]
[1725010627393,4.62604572,2521.2,2521.1,1.54955807]
[1725010627687,4.62604572,2521.2,2521.1,3.03893435]
[1725010628084,4.62604572,2521.2,2521.1,3.53482509]
[1725010628278,4.62604572,2521.2,2521.1,2.65484362]
[1725010630790,4.62604572,2521.2,2521.1,1.1372]
[1725010630992,4.62604572,2521.2,2521.1,2.15906476]
[1725010631377,4.62604572,2521.2,2521.1,1.74662548]
[1725010631577,4.62604572,2521.2,2521.1,2.24251719]
[1725010632488,5.61748572,2521.2,2521.1,2.24251719]
[1725010634478,5.61748572,2521.2,2521.1,1.63309171]
[1725010635591,5.61748572,2521.2,2521.1,2.02968171]
[1725010635592,4.62604572,2521.2,2521.1,2.02968171]
[1725010635895,1.36201,2521.3,2521.2,0.39656]
[1725010635896,0.39657,2521.3,2521.2,0.39656]
[1725010636187,0.39657,2521.3,2521.2,0.89245171]
[1725010636579,1.38797,2521.3,2521.2,0.49589171]
[1725010636785,1.38797,2521.3,2521.2,0.89246171]
[1725010639894,0.39657,2521.3,2521.2,0.89246171]
[1725010640692,0.39657,2521.3,2521.2,4.36297]
[1725010640888,0.39657,2521.3,2521.2,4.85882963]
[1725010642497,1.38797,2521.3,2521.2,4.85882963]
[1725010644087,0.39663,2520.8,2520.7,4.50364]
[1725010644288,0.39663,2520.8,2520.7,1.50223934]
[1725010644483,0.39663,2520.8,2520.7,0.49593064]
[1725010644484,6.26907377,2520.8,2520.7,0.49593064]
[1725010644691,9.47687377,2520.8,2520.7,0.49593064]
[1725010645995,10.46846377,2520.8,2520.7,0.49593064]
[1725010646782,1.38828,2520.7,2520.6,0.7297]
[1725010647203,5.90233002,2520.7,2520.6,0.7297]
[1725010647589,0.39668,2520.5,2520.4,0.77399]
[1725010647996,0.39668,2520.5,2520.4,4.74119]
[1725010648189,0.39668,2520.5,2520.4,0.3773]
[1725010648592,0.39668,2520.5,2520.4,4.3445]
[1725010648894,1.38839,2520.5,2520.4,0.3773]
[1725010649492,0.39668,2520.5,2520.4,0.3773]
[1725010650700,0.3967,2520.4,2520.3,0.39671]
[1725010650899,0.3967,2520.4,2520.3,0.75261]
[1725010651501,0.3967,2520.4,2520.3,1.24862479]
[1725010651886,4.60069707,2520.5,2520.4,0.3967]
[1725010652097,4.60069707,2520.5,2520.4,0.89271479]
[1725010652698,4.60069707,2520.5,2520.4,1.50233773]
[1725010653591,4.60068707,2520.5,2520.4,1.50233773]
[1725010653999,4.60068707,2520.5,2520.4,1.00632294]
[1725010654191,4.60068707,2520.5,2520.4,1.00631081]
[1725010654693,4.60068707,2520.5,2520.4,1.50231796]
[1725010655196,4.20400707,2520.5,2520.4,1.50231796]
[1725010655393,3.6006,2520.8,2520.4,6.06456796]
[1725010655600,3.6006,2520.8,2520.7,0.39665]
[1725010655798,3.6006,2520.8,2520.7,0.89265715]
[1725010655999,8.14758286,2520.8,2520.7,0.89265715]
[1725010657001,8.54423286,2520.8,2520.7,0.89265715]
[1725010657202,8.54423286,2520.8,2520.7,0.49600715]
[1725010657402,8.54423286,2520.8,2520.7,0.39665]
[1725010657605,8.54423286,2520.8,2520.7,0.89264295]
[1725010659008,9.53582286,2520.8,2520.7,0.49599295]
[1725010659600,8.54421286,2520.8,2520.7,0.89264295]
[1725010659811,4.54698286,2520.8,2520.7,5.85147295]
[1725010660001,0.39659,2521.1,2521.0,0.39659]
[1725010660204,0.39659,2521.1,2521.0,0.89258295]
[1725010660505,4.74385736,2521.1,2521.0,0.89258295]
[1725010660707,4.74385736,2521.1,2521.0,0.49599295]
[1725010661003,5.73533736,2521.1,2521.0,0.49599295]
[1725010663401,9.70173736,2521.1,2521.0,0.49599295]
[1725010663597,10.69321736,2521.1,2521.0,0.49599295]
[1725010664604,0.39662,2520.9,2520.8,0.77963]
[1725010664797,3.60442,2520.9,2520.8,1.38926781]
[1725010665005,8.02802298,2520.9,2520.8,0.60963781]
[1725010665310,9.15162298,2520.9,2520.8,1.50224049]
[1725010667509,9.15162298,2520.9,2520.8,1.10561049]
[1725010667711,8.41022298,2520.9,2520.8,1.00632803]
[1725010667908,8.41022298,2520.9,2520.8,4.97352803]
[1725010667909,3.2078,2520.9,2520.8,4.97352803]
[1725010668105,3.2078,2520.9,2520.8,6.76244907]
[1725010668606,3.2078,2520.9,2520.8,7.12004907]
[1725010669714,3.60437,2521.2,2521.1,0.39657]
[1725010670015,4.31065432,2521.2,2521.1,1.50224659]
[1725010670313,0.00595061,2521.4,2521.3,0.39656]
[1725010670620,0.00595061,2521.4,2521.3,15.42443393]
[1725010670803,0.00595061,2521.4,2521.3,17.2549582]
[1725010670999,0.00595061,2521.4,2521.3,13.70806004]
[1725010671000,0.00239197,2521.4,2521.3,13.70806004]
[1725010671210,0.7464,2522.1,2521.8,0.39647]
[1725010671211,1.14284,2522.1,2521.8,0.39647]
[1725010671514,4.866341,2522.0,2521.9,0.98690439]
[1725010671719,4.866341,2522.0,2521.9,0.60910439]
[1725010672216,4.866341,2522.0,2521.9,0.49577332]
[1725010672417,4.866341,2522.0,2521.9,1.10484374]
[1725010672614,4.866341,2522.0,2521.9,0.60907042]
[1725010673009,0.39647,2521.9,2521.7,0.00595061]
[1725010673314,0.39647,2521.9,2521.8,0.60908435]
[1725010673315,3.60427,2521.9,2521.8,0.60908435]
[1725010673614,3.60427,2521.9,2521.8,1.1048586]
[1725010673615,8.06110998,2521.9,2521.8,1.1048586]
[1725010674608,8.06110998,2521.9,2521.8,0.49577425]
[1725010675816,13.01786998,2521.9,2521.8,0.49577425]
[1725010676916,8.06110998,2521.9,2521.8,0.49577425]
[1725010677917,0.39648,2521.8,2521.7,0.00595061]
[1725010679020,0.39648,2521.8,2521.7,0.50174935]
[1725010680020,7.66463998,2521.9,2521.8,0.39648]
[1725010680225,8.06110998,2521.9,2521.8,1.25579874]
[1725010680419,8.06110998,2521.9,2521.8,0.49579874]
[1725010681024,0.39648,2521.8,2521.7,0.40243061]
[1725010682118,0.39648,2521.8,2521.7,0.8982208]
[1725010682725,8.06110998,2521.9,2521.8,0.39648]
[1725010682920,7.66463998,2521.9,2521.8,4.85787019]
[1725010683121,0.76254,2522.1,2522.0,0.39645]
[1725010683320,0.76254,2522.1,2522.0,0.49579019]
[1725010683525,6.35288961,2522.1,2522.0,0.49579019]
[1725010684029,0.39645,2522.0,2521.9,1.50876]
[1725010684323,5.36180961,2522.1,2522.0,0.39645]
[1725010684631,0.39645,2522.0,2521.9,1.50875]
[1725010684816,0.39645,2522.0,2521.9,2.00448286]
[1725010685127,5.36180961,2522.1,2522.0,0.39645]
[1725010685428,5.36180961,2522.1,2522.0,0.89218286]
[1725010686024,4.59926961,2522.1,2522.0,0.89218286]
[1725010687122,4.59926961,2522.1,2522.0,4.85698286]
[1725010687525,4.96526961,2522.1,2522.0,0.89218286]
[1725010687922,4.59926961,2522.1,2522.0,0.89218286]
[1725010688125,4.59926961,2522.1,2522.0,4.85698286]
[1725010689228,4.59926961,2522.1,2522.0,0.89218286]
[1725010689427,4.99569961,2522.1,2522.0,0.89218286]
[1725010689929,4.98776961,2522.1,2522.0,0.89218286]
[1725010690729,5.38419961,2522.1,2522.0,0.39645]
[1725010691031,5.38419961,2522.1,2522.0,0.89213996]
[1725010692734,4.98776961,2522.1,2522.0,0.89213996]
[1725010693037,5.38419961,2522.1,2522.0,0.89213996]
[1725010694129,5.38419961,2522.1,2522.0,0.39645]
[1725010694338,5.38419961,2522.1,2522.0,0.89213748]
[1725010694638,6.37527961,2522.1,2522.0,0.49568748]
[1725010694838,6.37527961,2522.1,2522.0,0.89213748]
[1725010696039,6.37527961,2522.1,2522.0,0.49568748]
[1725010696233,6.37527961,2522.1,2522.0,0.89213748]
[1725010697338,4.98776961,2522.1,2522.0,0.89213748]
[1725010697535,4.98776961,2522.1,2522.0,0.39645]
[1725010698037,4.98776961,2522.1,2522.0,0.89214443]
[1725010698732,5.38419961,2522.1,2522.0,0.89214443]
[1725010699042,13.54787961,2522.1,2522.0,0.49569443]
[1725010699236,14.53895961,2522.1,2522.0,0.49569443]
[1725010699742,1.38768,2521.8,2521.7,0.00595061]
[1725010699938,8.56108,2521.8,2521.7,0.50174196]
[1725010700134,13.00535492,2521.8,2521.7,0.50174196]
[1725010700444,13.36595492,2521.8,2521.7,0.50174196]
[1725010701054,13.36595492,2521.8,2521.7,0.00595061]
[1725010701751,13.36595492,2521.8,2521.7,0.50176818]
[1725010703153,13.36595492,2521.8,2521.7,0.00595061]
[1725010703364,13.36595492,2521.8,2521.7,0.50176843]
[1725010704362,13.36595492,2521.8,2521.7,1.2950788]
[1725010707563,14.35715492,2521.8,2521.7,1.2950788]
[1725010708166,9.03975492,2521.8,2521.7,1.2950788]
[1725010708369,9.03975492,2521.8,2521.7,0.00595061]
[1725010708570,13.00535492,2521.8,2521.7,1.90437207]
[1725010708869,13.99655492,2521.8,2521.7,1.90437081]
[1725010709069,13.99655492,2521.8,2521.7,0.50176899]
[1725010709364,13.99655492,2521.8,2521.7,0.61526527]
[1725010709567,13.99655492,2521.8,2521.7,1.29501036]
[1725010710565,13.99655492,2521.8,2521.7,1.90434623]
[1725010711458,13.99655492,2521.8,2521.7,2.31670488]
[1725010713262,13.99655492,2521.8,2521.7,1.90434623]
[1725010713467,15.97896492,2521.8,2521.7,1.29501036]
[1725010713766,22.35236492,2521.8,2521.7,1.29501036]
[1725010713965,1.38796,2521.3,2521.2,1.40274974]
[1725010714161,1.38796,2521.3,2521.2,3.30515153]
[1725010714471,1.38796,2521.3,2521.2,2.91550134]
[1725010714765,1.38796,2521.3,2521.2,3.94885108]
[1725010715564,1.38796,2521.3,2521.2,3.57945108]
[1725010716771,3.60435,2521.4,2521.3,0.39656]
[1725010716972,3.2078,2521.4,2521.3,3.68176134]
[1725010717173,3.2078,2521.4,2521.3,4.71988621]
[1725010717174,7.52151189,2521.4,2521.3,4.71988621]
[1725010717377,7.52151189,2521.4,2521.3,3.68176134]
[1725010717676,7.52151189,2521.4,2521.3,4.71974304]
[1725010717973,7.52151189,2521.4,2521.3,4.71974176]
[1725010718174,7.91805189,2521.4,2521.3,2.17364042]
[1725010718363,7.52151189,2521.4,2521.3,4.71799866]
[1725010718777,7.91805189,2521.4,2521.3,4.71799866]
[1725010719279,7.91805189,2521.4,2521.3,4.32143866]
[1725010719670,8.27625189,2521.4,2521.3,4.32143866]
[1725010720179,8.27625189,2521.4,2521.3,4.71799866]
[1725010721477,8.27625189,2521.4,2521.3,3.03668385]
[1725010721675,8.27625189,2521.4,2521.3,3.03683674]
[1725010722266,7.52151189,2521.4,2521.3,3.03683674]
[1725010722470,0.3965,2521.7,2521.4,0.99136]
[1725010722694,3.2078,2521.9,2521.8,0.39648]
[1725010722975,3.2078,2521.9,2521.8,2.29765674]
[1725010723183,3.2078,2521.9,2521.8,6.26325674]
[1725010724280,3.2078,2521.9,2521.8,2.29765674]
[1725010724485,3.2078,2521.9,2521.8,6.26325674]
[1725010725087,3.2078,2521.9,2521.8,4.36208]
[1725010725282,3.2078,2521.9,2521.8,6.26241185]
[1725010726180,0.00595061,2522.2,2522.1,0.39643]
[1725010726386,0.3555,2522.6,2522.1,15.25014295]
[1725010726577,0.75186,2522.6,2522.4,0.39637]
[1725010726779,4.9475374,2522.6,2522.5,1.51648007]
[1725010726979,0.75186,2522.6,2522.5,1.51648007]
[1725010727384,4.97854027,2522.6,2522.5,1.51648007]
[1725010728192,4.97854027,2522.6,2522.5,1.10467698]
[1725010728584,5.96943027,2522.6,2522.5,1.10467698]
[1725010730198,9.93343027,2522.6,2522.5,1.10467698]
[1725010730987,5.96943027,2522.6,2522.5,1.10467698]
[1725010731792,0.39638,2522.4,2522.3,0.00595061]
[1725010732001,0.39638,2522.4,2522.3,0.81416488]
[1725010732199,0.39638,2522.4,2522.3,2.30159386]
[1725010733196,0.39638,2522.4,2522.3,2.79722448]
[1725010734293,0.39638,2522.5,2522.4,0.39637]
[1725010734508,0.39638,2522.5,2522.4,1.50061129]
[1725010734698,4.32189621,2522.5,2522.4,2.27091129]
[1725010734998,0.75186,2522.6,2522.5,0.39637]
[1725010735696,0.75186,2522.6,2522.5,1.00514259]
[1725010736195,0.75186,2522.6,2522.5,0.89198783]
[1725010736395,0.75186,2522.6,2522.5,1.99639496]
[1725010736590,0.75186,2522.6,2522.5,0.89199426]
[1725010738703,0.75186,2522.6,2522.5,0.89199212]
[1725010744301,0.75186,2522.6,2522.5,0.39637]
[1725010745101,0.75186,2522.6,2522.5,0.89198468]
[1725010747501,0.75185,2522.6,2522.5,0.39637]
[1725010747997,0.3555,2522.6,2522.5,0.39637]
[1725010748197,0.3555,2522.6,2522.5,0.89198495]
[1725010748904,0.75185,2522.6,2522.5,0.89198495]
[1725010749108,0.3555,2522.6,2522.5,1.88291495]
[1725010750202,0.75185,2522.6,2522.5,0.89198495]
[1725010750998,0.75185,2522.6,2522.5,0.39637]
[1725010751394,0.75185,2522.6,2522.5,0.89198777]
[1725010751803,0.3555,2522.6,2522.5,0.89198777]
[1725010752004,0.36055061,2522.8,2522.7,0.39634]
[1725010752307,0.00595061,2522.8,2522.7,1.38719]
[1725010752492,0.00595061,2522.8,2522.7,0.39634]
[1725010752698,0.00595061,2522.8,2522.7,5.35119]
[1725010752899,0.00595061,2522.8,2522.7,6.22850827]
[1725010753501,0.00595061,2522.8,2522.7,4.85595827]
[1725010753898,0.40227061,2522.8,2522.7,0.89195827]
[1725010754300,0.40227061,2522.8,2522.7,0.39634]
[1725010754301,4.59662093,2522.8,2522.7,0.39634]
[1725010755010,4.59662093,2522.8,2522.7,0.89191471]
[1725010757412,4.59662093,2522.8,2522.7,0.39634]
[1725010757615,4.59662093,2522.8,2522.7,0.89191535]
[1725010759613,4.59662093,2522.8,2522.7,0.49557535]
[1725010761512,5.58743093,2522.8,2522.7,0.49557535]
[1725010764619,5.58743093,2522.8,2522.7,1.10414971]
[1725010765307,5.58743093,2522.8,2522.7,1.50048971]
[1725010767218,5.58743093,2522.8,2522.7,2.7911022]
[1725010768210,4.59662093,2522.8,2522.7,2.7911022]
[1725010768421,0.00595061,2522.8,2522.7,9.9629022]
[1725010768620,3.2078,2523.1,2523.0,0.39629]
[1725010768924,3.2078,2523.1,2523.0,2.7910522]
[1725010769710,3.60408,2523.1,2523.0,2.3947622]
[1725010769922,3.60408,2523.1,2523.0,2.7910522]
[1725010770325,3.2078,2523.1,2523.0,2.7910522]
[1725010770513,3.2078,2523.1,2523.0,3.1535522]
[1725010770918,0.00595061,2523.3,2523.2,0.39626]
[1725010771221,0.00595061,2523.3,2523.2,1.4163554]
[1725010771222,0.40219061,2523.3,2523.2,1.4163554]
[1725010771421,0.40219061,2523.3,2523.2,6.75353893]
[1725010772218,0.00595061,2523.3,2523.2,7.3958483]
[1725010772514,0.00595061,2523.3,2523.2,6.75353893]
[1725010773113,0.00595061,2523.3,2523.2,7.74418893]
[1725010773317,0.00595061,2523.3,2523.2,9.41306096]
[1725010773516,0.00595061,2523.3,2523.2,10.45072207]
[1725010774322,0.00595061,2523.3,2523.2,6.38777111]
[1725010774630,0.00595061,2523.3,2523.2,8.91650357]
[1725010774818,0.00595061,2523.3,2523.2,9.95416468]
[1725010775020,0.00595061,2523.3,2523.2,10.44960582]
[1725010775324,0.00595061,2523.3,2523.2,8.3854473]
[1725010775520,0.00595061,2523.3,2523.2,10.44959395]
[1725010775822,0.3844,2523.7,2523.6,0.39619]
[1725010776026,0.3844,2523.7,2523.6,2.7892442]
[1725010776224,4.51675783,2523.7,2523.6,2.7892442]
[1725010776727,4.91293783,2523.7,2523.6,2.78906391]
[1725010777325,4.91293783,2523.7,2523.6,2.37759104]
[1725010777626,4.91293783,2523.7,2523.6,1.41557543]
[1725010777814,4.91293783,2523.7,2523.6,1.91098539]
[1725010778024,4.51675783,2523.7,2523.6,1.91098539]
[1725010778214,4.91293783,2523.7,2523.6,1.91098539]
[1725010778417,4.91293783,2523.7,2523.6,1.49961474]
[1725010779126,4.51675783,2523.7,2523.6,1.49961474]
[1725010779536,4.51675783,2523.7,2523.6,1.91095792]
[1725010779923,4.51675783,2523.7,2523.6,1.49961474]
[1725010780629,4.51675783,2523.7,2523.6,0.89159996]
[1725010780833,4.51675783,2523.7,2523.6,1.00420894]
[1725010781130,4.51675783,2523.7,2523.6,1.49961505]
[1725010781331,0.3844,2523.7,2523.6,1.49961505]
[1725010782126,0.3844,2523.7,2523.6,2.29222735]
[1725010782524,0.7282,2523.8,2523.6,2.29222735]
[1725010782730,0.77081061,2523.9,2523.8,0.39616]
[1725010782936,0.37465061,2523.9,2523.8,1.68417841]
[1725010783124,0.37465061,2523.9,2523.8,2.29205116]
[1725010783125,0.00595061,2523.9,2523.8,2.29205116]
[1725010783327,0.00595061,2523.9,2523.8,6.25445116]
[1725010783827,0.00595061,2523.9,2523.8,7.00325116]
[1725010784135,0.00595061,2523.9,2523.8,8.40482119]
[1725010784336,0.363,2524.2,2524.1,0.39612]
[1725010784631,4.52723456,2524.2,2524.1,0.39612]
[1725010784835,4.16423456,2524.2,2524.1,4.35772]
[1725010785022,1.50378,2524.4,2524.2,0.3961]
[1725010785734,1.50378,2524.4,2524.3,0.49532759]
[1725010786531,5.67696323,2524.4,2524.3,0.49532759]
[1725010787633,5.67696323,2524.4,2524.2,0.3961]
[1725010788227,5.67696323,2524.4,2524.1,0.39611]
[1725010788228,0.39609,2524.3,2524.1,0.39611]
[1725010788936,0.39609,2524.3,2524.2,0.49529742]
[1725010789135,1.38631,2524.3,2524.2,0.49529742]
[1725010789335,0.39614,2524.0,2523.8,4.50316]
[1725010789538,0.3877,2523.9,2523.8,4.50316]
[1725010789732,0.3877,2523.9,2523.8,9.75343537]
[1725010789929,0.3877,2523.9,2523.8,5.64643537]
[1725010790742,1.51605,2523.9,2523.8,1.28787537]
[1725010791040,0.39618,2523.7,2523.6,3.21375061]
[1725010791334,6.05601645,2523.9,2523.7,0.39617]
[1725010791929,6.05601645,2523.9,2523.8,1.28791881]
[1725010792627,6.05601645,2523.9,2523.8,0.49535389]
[1725010795541,0.39616,2523.8,2523.7,0.39618]
[1725010795730,6.05602645,2523.9,2523.8,0.89151549]
[1725010796041,1.51606,2523.9,2523.8,0.49535549]
[1725010796230,1.51606,2523.9,2523.8,1.28792436]
[1725010797531,2.50644,2523.9,2523.8,1.28792436]
[1725010797937,6.83066701,2523.9,2523.8,1.28792436]
[1725010798237,6.83066701,2523.9,2523.8,0.49535549]
[1725010800539,0.39617,2523.8,2523.7,0.39617]
[1725010801540,0.39617,2523.8,2523.7,1.68410039]
[1725010803137,0.39617,2523.8,2523.7,0.39617]
[1725010803536,5.44412701,2523.9,2523.6,3.98585061]
[1725010803746,0.3877,2523.9,2523.8,0.39616]
[1725010803954,0.39615,2524.0,2523.9,0.39615]
[1725010804443,0.39615,2524.0,2523.9,1.68408627]
[1725010805937,0.76113,2524.1,2524.0,0.39613]
[1725010806136,0.76113,2524.1,2524.0,1.68406627]
[1725010807863,0.365,2524.1,2524.0,1.68406627]
[1725010808045,1.1748,2524.3,2524.2,0.3961]
[1725010808239,1.1748,2524.3,2524.2,1.68403627]
[1725010808556,1.1748,2524.3,2524.2,9.87242951]
[1725010808557,4.32801484,2524.3,2524.2,9.87242951]
[1725010808850,0.3755,2524.4,2524.3,0.39609]
[1725010809149,0.3755,2524.4,2524.3,2.70301951]
[1725010809539,0.3755,2524.4,2524.3,2.29182747]
[1725010809748,0.3755,2524.4,2524.3,1.41488752]
[1725010809946,0.76025061,2524.6,2524.3,4.98039752]
[1725010810142,0.76025061,2524.6,2524.5,0.39605]
[1725010810143,0.39535061,2524.6,2524.5,0.39605]
[1725010810648,4.85348891,2524.6,2524.5,0.39605]
[1725010811047,4.85348891,2524.6,2524.5,0.89128459]
[1725010811246,4.85348891,2524.6,2524.5,1.68365993]
[1725010812351,4.85348891,2524.6,2524.5,6.25203967]
[1725010812352,0.00595061,2524.6,2524.5,6.25203967]
[1725010812552,0.00595061,2524.6,2524.5,9.45981819]
[1725010812849,0.00595061,2524.6,2524.5,9.87081079]
[1725010813061,0.00595061,2524.6,2524.5,9.87071347]
[1725010813249,1.12987,2525.1,2524.8,0.396]
[1725010813550,1.48517,2525.1,2524.8,0.396]
[1725010813850,4.75174406,2525.0,2524.8,0.396]
[1725010814039,4.75174406,2525.0,2524.9,1.28737666]
[1725010814245,8.94949406,2525.0,2524.9,1.28737666]
[1725010814437,19.90024406,2525.0,2524.9,0.13640218]
[1725010814640,0.39604,2524.6,2524.5,7.3148]
[1725010814845,0.39604,2524.6,2524.5,8.1071902]
[1725010815153,4.97507998,2524.6,2524.5,4.8993902]
[1725010815353,5.96517998,2524.6,2524.5,4.8993902]
[1725010815550,9.92597998,2524.6,2524.5,4.8993902]
[1725010816044,9.92597998,2524.6,2524.5,4.107]
[1725010816250,4.97507998,2524.6,2524.5,4.89946619]
[1725010816649,4.57903998,2524.6,2524.5,8.35711619]
[1725010816854,0.7358,2525.1,2524.5,10.49769143]
[1725010817064,0.7358,2525.1,2524.6,3.71939143]
[1725010817246,4.21077168,2525.0,2524.7,1.81087673]
[1725010817452,4.21077168,2525.0,2524.8,1.81087673]
[1725010817649,4.21077168,2525.0,2524.9,1.39986667]
[1725010817853,4.57117168,2525.0,2524.9,1.39986667]
[1725010818252,4.96715168,2525.0,2524.9,0.79246619]
[1725010818452,4.96715168,2525.0,2524.9,1.39986195]
[1725010819153,0.39599,2524.9,2524.5,3.60385]
[1725010819546,0.39599,2524.9,2524.6,1.89529045]
[1725010819743,0.39599,2524.9,2524.7,1.01828345]
[1725010819955,0.39599,2524.9,2524.8,0.60739449]
[1725010820151,0.39602,2524.8,2524.5,4.2433742]
[1725010820449,4.37884853,2524.9,2524.7,0.39601]